[Event "British Rapidplay Championship 2023"]
[Site "Mercure Bradford, Bankfield Hotel"]
[Date "2023.04.16"]
[Round "8.20"]
[White "Walton, Alan J"]
[Black "Fava, Lorenzo"]
[Result "1/2-1/2"]
[TimeControl "15 minutes plus 10 seconds per move"]
[WhiteElo "2105"]
[BlackElo "1728"]

1. d4 {[%clk 00:15:18]} {[%emt 00:00:02]} g6 {[%clk 00:15:19]} {[%emt
00:00:01]} 2. e4 {[%clk 00:15:26]} {[%emt 00:00:02]} Bg7 {[%clk 00:15:28]}
{[%emt 00:00:02]} 3. Nc3 {[%clk 00:15:33]} {[%emt 00:00:02]} d6 {[%clk
00:15:37]} {[%emt 00:00:01]} 4. Be3 {[%clk 00:15:26]} {[%emt 00:00:17]} Nf6
{[%clk 00:15:45]} {[%emt 00:00:02]} 5. h3 {[%clk 00:15:30]} {[%emt 00:00:06]}
O-O {[%clk 00:14:55]} {[%emt 00:01:00]} 6. Qd2 {[%clk 00:15:38]} {[%emt
00:00:01]} e5 {[%clk 00:15:01]} {[%emt 00:00:05]} 7. dxe5 {[%clk 00:15:33]}
{[%emt 00:00:15]} dxe5 {[%clk 00:15:09]} {[%emt 00:00:02]} 8. O-O-O {[%clk
00:15:00]} {[%emt 00:00:43]} Qe7 {[%clk 00:13:48]} {[%emt 00:01:30]} 9. Bg5
{[%clk 00:15:03]} {[%emt 00:00:08]} c6 {[%emt 00:00:52]} 10. Qd6 {[%clk
00:15:06]} Qxd6 {[%clk 00:13:07]} {[%emt 00:00:16]} 11. Rxd6 {[%clk 00:15:15]}
{[%emt 00:00:01]} Be6 {[%clk 00:13:11]} {[%emt 00:00:05]} 12. Nf3 {[%clk
00:15:12]} {[%emt 00:00:13]} h6 {[%clk 00:13:13]} {[%emt 00:00:09]} 13. Bh4
{[%clk 00:14:04]} {[%emt 00:01:19]} Nbd7 {[%clk 00:13:21]} {[%emt 00:00:01]} 14.
Be2 {[%clk 00:14:13]} {[%emt 00:00:01]} Nh5 {[%clk 00:12:59]} {[%emt 00:00:32]}
15. Rhd1 {[%clk 00:14:19]} {[%emt 00:00:04]} Nb6 {[%clk 00:12:29]} {[%emt
00:00:40]} 16. a4 {[%clk 00:12:56]} {[%emt 00:01:33]} g5 {[%clk 00:11:10]}
{[%emt 00:01:29]} 17. Bg3 {[%clk 00:13:04]} {[%emt 00:00:01]} Nxg3 {[%clk
00:11:19]} {[%emt 00:00:02]} 18. fxg3 {[%clk 00:13:13]} {[%emt 00:00:01]} a5
{[%clk 00:11:07]} {[%emt 00:00:23]} 19. g4 {[%clk 00:12:42]} {[%emt 00:00:40]}
Bf6 {[%clk 00:11:02]} {[%emt 00:00:15]} 20. Nd5 {[%clk 00:11:16]} {[%emt
00:01:37]} Nxd5 {[%clk 00:09:32]} {[%emt 00:01:40]} 21. exd5 {[%clk 00:11:24]}
{[%emt 00:00:01]} cxd5 {[%clk 00:09:41]} {[%emt 00:00:02]} 22. Bb5 {[%clk
00:09:49]} {[%emt 00:01:45]} Rfd8 {[%clk 00:07:34]} {[%emt 00:02:16]} 23. Rb6
{[%clk 00:09:36]} {[%emt 00:00:22]} Rab8 {[%clk 00:07:34]} {[%emt 00:00:11]} 24.
c4 {[%clk 00:07:25]} {[%emt 00:02:21]} d4 {[%clk 00:03:50]} {[%emt 00:03:54]}
25. Nd2 {[%clk 00:07:34]} {[%emt 00:00:01]} Rdc8 {[%clk 00:03:14]} {[%emt
00:00:46]} 26. Rxe6 {[%clk 00:07:42]} {[%emt 00:00:02]} fxe6 {[%clk 00:03:23]}
{[%emt 00:00:01]} 27. Bd7 {[%clk 00:07:43]} {[%emt 00:00:09]} Rf8 {[%clk
00:02:38]} {[%emt 00:00:55]} 28. Bxe6+ {[%clk 00:07:51]} {[%emt 00:00:02]} Kg7
{[%clk 00:02:47]} {[%emt 00:00:01]} 29. Ne4 {[%clk 00:07:56]} {[%emt 00:00:05]}
Be7 {[%clk 00:02:26]} {[%emt 00:00:31]} 30. Bf5 {[%clk 00:08:05]} {[%emt
00:00:01]} Bb4 {[%clk 00:01:51]} {[%emt 00:00:45]} 31. Kc2 {[%clk 00:08:10]}
{[%emt 00:00:05]} Be7 {[%clk 00:01:35]} {[%emt 00:00:27]} 32. Kd3 {[%clk
00:08:17]} {[%emt 00:00:03]} h5 {[%clk 00:01:43]} {[%emt 00:00:01]} 33. Ng3
{[%clk 00:08:12]} {[%emt 00:00:14]} hxg4 {[%clk 00:01:30]} {[%emt 00:00:23]} 34.
hxg4 {[%clk 00:08:22]} {[%emt 00:00:01]} Bf6 {[%clk 00:01:24]} {[%emt
00:00:17]} 35. Ke4 {[%clk 00:07:58]} {[%emt 00:00:33]} Rbd8 {[%clk 00:01:11]}
{[%emt 00:00:23]} 36. Rd3 {[%clk 00:08:06]} {[%emt 00:00:02]} Rh8 {[%clk
00:00:50]} {[%emt 00:00:31]} 37. Nh5+ {[%clk 00:08:11]} {[%emt 00:00:05]} Kf7
{[%clk 00:01:00]} {[%emt 00:00:01]} 38. Kf3 {[%clk 00:07:34]} {[%emt 00:00:47]}
Ke7 {[%clk 00:00:48]} {[%emt 00:00:21]} 39. Rb3 {[%clk 00:07:40]} {[%emt
00:00:04]} Rb8 {[%clk 00:00:19]} {[%emt 00:00:39]} 40. Rb6 {[%clk 00:07:48]}
{[%emt 00:00:02]} Rhf8 {[%clk 00:00:28]} {[%emt 00:00:01]} 41. Ke4 {[%clk
00:07:44]} {[%emt 00:00:14]} Bh8 {[%clk 00:00:31]} {[%emt 00:00:07]} 42. Ng3
{[%clk 00:07:36]} {[%emt 00:00:18]} Rf6 {[%clk 00:00:33]} {[%emt 00:00:08]} 43.
Rb5 {[%clk 00:07:44]} {[%emt 00:00:02]} Rc6 {[%clk 00:00:39]} {[%emt 00:00:04]}
44. Kd3 {[%clk 00:07:46]} {[%emt 00:00:08]} b6 {[%clk 00:00:30]} {[%emt
00:00:19]} 45. Ne4 {[%clk 00:07:42]} {[%emt 00:00:13]} Bf6 {[%clk 00:00:39]}
{[%emt 00:00:01]} 46. Rd5 {[%clk 00:07:28]} {[%emt 00:00:25]} Rd8 {[%clk
00:00:38]} {[%emt 00:00:12]} 47. Nxf6 {[%clk 00:07:31]} {[%emt 00:00:06]} Rxf6
{[%clk 00:00:43]} {[%emt 00:00:05]} 48. Rxe5+ {[%clk 00:07:40]} Kf7 {[%clk
00:00:47]} {[%emt 00:00:07]} 49. Be4 {[%clk 00:07:22]} {[%emt 00:00:28]} Rf2
{[%clk 00:00:32]} {[%emt 00:00:25]} 50. Rxg5 {[%clk 00:07:18]} {[%emt
00:00:15]} Rxb2 {[%clk 00:00:36]} {[%emt 00:00:06]} 51. Bd5+ {[%clk 00:07:23]}
{[%emt 00:00:05]} Kf6 {[%clk 00:00:40]} {[%emt 00:00:06]} 52. Rf5+ {[%clk
00:07:27]} {[%emt 00:00:05]} Kg6 {[%clk 00:00:49]} 53. Kxd4 {[%clk 00:07:32]}
{[%emt 00:00:05]} Rxg2 {[%clk 00:00:46]} {[%emt 00:00:12]} 54. Ke5 {[%clk
00:07:02]} {[%emt 00:00:41]} Re2+ {[%clk 00:00:32]} {[%emt 00:00:24]} 55. Kd4
{[%clk 00:07:09]} {[%emt 00:00:03]} Ra2 {[%clk 00:00:21]} {[%emt 00:00:21]} 56.
Re5 {[%clk 00:07:16]} {[%emt 00:00:04]} Rd6 {[%clk 00:00:16]} {[%emt 00:00:15]}
57. Re8 {[%clk 00:07:22]} {[%emt 00:00:04]} Rxa4 {[%clk 00:00:13]} {[%emt
00:00:13]} 58. Ke5 {[%clk 00:07:31]} {[%emt 00:00:01]} Rd7 {[%clk 00:00:20]}
{[%emt 00:00:04]} 59. Re6+ {[%clk 00:07:35]} {[%emt 00:00:05]} Kg5 {[%clk
00:00:27]} {[%emt 00:00:03]} 60. Rxb6 {[%clk 00:07:44]} {[%emt 00:00:01]} Rb4
{[%clk 00:00:19]} {[%emt 00:00:18]} 61. Ra6 {[%clk 00:07:49]} {[%emt 00:00:04]}
a4 {[%clk 00:00:21]} {[%emt 00:00:09]} 62. Ra8 {[%clk 00:07:47]} {[%emt
00:00:12]} Re7+ {[%clk 00:00:12]} {[%emt 00:00:19]} 63. Kd6 {[%clk 00:07:48]}
{[%emt 00:00:09]} Rg7 {[%clk 00:00:21]} {[%emt 00:00:01]} 64. Kc5 {[%clk
00:07:57]} {[%emt 00:00:01]} Rb2 {[%clk 00:00:22]} {[%emt 00:00:09]} 65. Rxa4
{[%clk 00:08:05]} {[%emt 00:00:02]} Kxg4 {[%clk 00:00:30]} {[%emt 00:00:03]} 66.
Kd6 {[%clk 00:08:12]} {[%emt 00:00:02]} Rb6+ {[%clk 00:00:28]} {[%emt
00:00:12]} 67. Kc5 {[%clk 00:08:21]} {[%emt 00:00:01]} Rb8 {[%clk 00:00:33]}
{[%emt 00:00:05]} 68. Kd6 {[%clk 00:08:22]} {[%emt 00:00:09]} Rb6+ {[%clk
00:00:39]} {[%emt 00:00:04]} 69. Ke5 {[%clk 00:08:25]} {[%emt 00:00:07]} Re7+
{[%clk 00:00:45]} {[%emt 00:00:04]} 70. Kd4 {[%clk 00:08:34]} Rb1 {[%clk
00:00:48]} {[%emt 00:00:07]} 71. Ra8 {[%clk 00:08:30]} {[%emt 00:00:14]} Kf5
{[%clk 00:00:33]} {[%emt 00:00:24]} 72. Rf8+ {[%clk 00:08:32]} {[%emt
00:00:09]} Kg5 {[%clk 00:00:40]} {[%emt 00:00:03]} 73. Kc5 {[%clk 00:08:24]}
{[%emt 00:00:18]} Ra1 {[%clk 00:00:27]} {[%emt 00:00:23]} 74. Kd6 {[%emt
00:00:07]} Rg7 {[%clk 00:00:35]} 75. Rf2 {[%clk 00:07:42]} {[%emt 00:00:56]}
Ra6+ {[%clk 00:00:42]} {[%emt 00:00:04]} 76. Ke5 {[%clk 00:07:51]} Re7+ {[%clk
00:00:44]} {[%emt 00:00:09]} 77. Kd4 {[%clk 00:08:00]} {[%emt 00:00:01]} Ra1
{[%clk 00:00:21]} {[%emt 00:00:32]} 78. Rf8 {[%clk 00:07:56]} {[%emt 00:00:15]}
Rd1+ {[%clk 00:00:18]} {[%emt 00:00:13]} 79. Kc5 {[%clk 00:08:05]} {[%emt
00:00:02]} Rc7+ {[%clk 00:00:25]} {[%emt 00:00:02]} 80. Kb6 {[%clk 00:07:20]}
{[%emt 00:00:55]} Rd7 {[%clk 00:00:18]} {[%emt 00:00:17]} 81. Kc6 {[%clk
00:07:26]} {[%emt 00:00:04]} Ra7 {[%clk 00:00:27]} {[%emt 00:00:01]} 82. Rf2
{[%clk 00:07:16]} {[%emt 00:00:20]} Ra6+ {[%clk 00:00:25]} {[%emt 00:00:13]} 83.
Kc5 {[%clk 00:07:12]} {[%emt 00:00:14]} Ra5+ {[%clk 00:00:29]} {[%emt
00:00:05]} 84. Kc6 {[%clk 00:07:10]} {[%emt 00:00:12]} Ra6+ {[%clk 00:00:39]}
85. Kb5 {[%clk 00:07:20]} Rd6 {[%clk 00:00:25]} {[%emt 00:00:23]} 86. Kc5
{[%clk 00:07:22]} {[%emt 00:00:08]} Ra6 {[%clk 00:00:35]} {[%emt 00:00:01]} 87.
Rg2 {[%clk 00:07:12]} {[%emt 00:00:20]} Kf4 {[%clk 00:00:28]} {[%emt 00:00:16]}
88. Kb5 {[%clk 00:07:16]} {[%emt 00:00:06]} Rd6 {[%clk 00:00:33]} {[%emt
00:00:05]} 89. Kc5 {[%clk 00:07:15]} {[%emt 00:00:26]} Ke5 {[%emt 00:00:03]}
1/2-1/2

[Event "British Rapidplay Championship 2023"]
[Site "Mercure Bradford, Bankfield Hotel"]
[Date "2023.04.16"]
[Round "8.21"]
[White "Patrick, Chaski"]
[Black "Deepak Ambattu, Rithvik"]
[Result "1/2-1/2"]
[TimeControl "15 minutes plus 10 seconds per move"]
[WhiteElo "2032"]
[BlackElo "1782"]

1. e4 {[%clk 00:14:04]} {[%emt 00:01:15]} c5 {[%clk 00:15:18]} {[%emt
00:00:03]} 2. Nf3 {[%clk 00:14:12]} {[%emt 00:00:02]} g6 {[%clk 00:15:26]}
{[%emt 00:00:01]} 3. Bc4 {[%clk 00:14:20]} {[%emt 00:00:03]} Bg7 {[%clk
00:15:34]} {[%emt 00:00:03]} 4. O-O {[%clk 00:14:26]} {[%emt 00:00:03]} Nc6
{[%clk 00:15:40]} {[%emt 00:00:04]} 5. c3 {[%clk 00:14:33]} {[%emt 00:00:03]}
e6 {[%clk 00:15:45]} {[%emt 00:00:05]} 6. Qe2 {[%clk 00:14:38]} {[%emt
00:00:06]} Nge7 {[%clk 00:15:51]} {[%emt 00:00:03]} 7. d4 {[%clk 00:14:29]}
{[%emt 00:00:18]} cxd4 {[%clk 00:15:38]} {[%emt 00:00:24]} 8. Rd1 {[%clk
00:14:37]} {[%emt 00:00:02]} d5 {[%clk 00:15:00]} {[%emt 00:00:48]} 9. Bb3
{[%clk 00:13:56]} {[%emt 00:00:50]} dxe4 {[%clk 00:14:28]} {[%emt 00:00:42]} 10.
Qxe4 {[%clk 00:14:04]} {[%emt 00:00:02]} O-O {[%clk 00:14:34]} {[%emt
00:00:05]} 11. cxd4 {[%clk 00:14:09]} {[%emt 00:00:05]} Na5 {[%clk 00:14:14]}
{[%emt 00:00:30]} 12. Bc2 {[%clk 00:13:48]} {[%emt 00:00:30]} Qd5 {[%clk
00:12:48]} {[%emt 00:01:37]} 13. Qh4 {[%clk 00:12:19]} {[%emt 00:01:39]} Nf5
{[%clk 00:12:25]} {[%emt 00:00:33]} 14. Bxf5 {[%clk 00:12:24]} {[%emt
00:00:04]} Qxf5 {[%clk 00:12:32]} {[%emt 00:00:04]} 15. Nc3 {[%clk 00:11:54]}
{[%emt 00:00:40]} h5 {[%clk 00:10:27]} {[%emt 00:02:16]} 16. Ne4 {[%clk
00:09:44]} {[%emt 00:02:18]} Bd7 {[%clk 00:07:54]} {[%emt 00:02:44]} 17. Bd2
{[%clk 00:03:58]} {[%emt 00:05:56]} Bc6 {[%clk 00:04:46]} {[%emt 00:03:19]} 18.
Nd6 {[%clk 00:03:46]} {[%emt 00:00:21]} Qd5 {[%clk 00:04:02]} {[%emt 00:00:54]}
19. Bxa5 {[%clk 00:03:54]} {[%emt 00:00:02]} Qxa5 {[%clk 00:03:26]} {[%emt
00:00:46]} 20. Nc4 {[%clk 00:03:34]} {[%emt 00:00:30]} Qd5 {[%clk 00:03:00]}
{[%emt 00:00:36]} 21. Nce5 {[%clk 00:03:16]} {[%emt 00:00:28]} Qd8 {[%clk
00:02:22]} {[%emt 00:00:48]} 22. Qxd8 {[%clk 00:03:09]} {[%emt 00:00:17]} Rfxd8
{[%clk 00:02:31]} {[%emt 00:00:01]} 23. Nxc6 {[%clk 00:03:17]} {[%emt
00:00:02]} bxc6 {[%clk 00:02:39]} {[%emt 00:00:02]} 24. Rac1 {[%clk 00:03:25]}
{[%emt 00:00:02]} Rac8 {[%clk 00:02:19]} {[%emt 00:00:31]} 25. Kf1 {[%clk
00:03:19]} {[%emt 00:00:15]} c5 {[%clk 00:02:08]} {[%emt 00:00:21]} 26. dxc5
{[%clk 00:02:34]} {[%emt 00:00:55]} Rxd1+ {[%clk 00:02:15]} {[%emt 00:00:03]}
27. Rxd1 {[%clk 00:02:43]} Rxc5 {[%clk 00:02:23]} {[%emt 00:00:02]} 28. Rd2
{[%clk 00:02:29]} {[%emt 00:00:24]} Rc1+ {[%clk 00:02:20]} {[%emt 00:00:13]} 29.
Ke2 {[%clk 00:02:38]} {[%emt 00:00:01]} Bh6 {[%clk 00:02:14]} {[%emt 00:00:17]}
30. Rd8+ {[%clk 00:02:33]} {[%emt 00:00:14]} Kg7 {[%clk 00:02:20]} {[%emt
00:00:02]} 31. Ne1 {[%clk 00:02:00]} {[%emt 00:00:45]} Bg5 {[%clk 00:01:19]}
{[%emt 00:01:11]} 32. Rd7 {[%clk 00:02:06]} {[%emt 00:00:04]} a5 {[%clk
00:01:24]} {[%emt 00:00:05]} 33. Ra7 {[%clk 00:02:06]} {[%emt 00:00:10]} Rc5
{[%clk 00:01:01]} {[%emt 00:00:34]} 34. g3 {[%clk 00:01:46]} {[%emt 00:00:29]}
Bf6 {[%clk 00:01:07]} {[%emt 00:00:02]} 35. Nd3 {[%clk 00:01:40]} {[%emt
00:00:18]} Rd5 {[%clk 00:01:08]} {[%emt 00:00:09]} 36. f4 {[%clk 00:01:37]}
{[%emt 00:00:13]} h4 {[%clk 00:01:07]} {[%emt 00:00:11]} 37. a3 {[%clk
00:01:39]} {[%emt 00:00:08]} hxg3 {[%clk 00:01:08]} {[%emt 00:00:09]} 38. hxg3
{[%clk 00:01:48]} Bd4 {[%clk 00:01:04]} {[%emt 00:00:14]} 39. Ra6 {[%clk
00:01:46]} {[%emt 00:00:12]} g5 {[%clk 00:00:57]} {[%emt 00:00:16]} 40. b4
{[%clk 00:01:45]} {[%emt 00:00:12]} axb4 {[%clk 00:01:01]} {[%emt 00:00:07]} 41.
axb4 {[%clk 00:01:52]} {[%emt 00:00:03]} g4 {[%clk 00:00:59]} {[%emt 00:00:12]}
42. Ra5 {[%clk 00:01:57]} {[%emt 00:00:05]} Rd6 {[%clk 00:00:33]} {[%emt
00:00:35]} 43. Rg5+ {[%clk 00:02:05]} {[%emt 00:00:02]} Kf6 {[%clk 00:00:37]}
{[%emt 00:00:05]} 44. Rxg4 {[%clk 00:02:14]} {[%emt 00:00:02]} Kf5 {[%clk
00:00:27]} {[%emt 00:00:20]} 45. Rg8 {[%clk 00:02:18]} {[%emt 00:00:06]} Ke4
{[%clk 00:00:27]} {[%emt 00:00:11]} 46. Rf8 {[%clk 00:02:15]} {[%emt 00:00:13]}
Be3 {[%clk 00:00:24]} {[%emt 00:00:13]} 47. Nc5+ {[%clk 00:02:13]} {[%emt
00:00:12]} Bxc5 {[%clk 00:00:31]} {[%emt 00:00:03]} 48. bxc5 {[%clk 00:02:22]}
Rc6 {[%clk 00:00:39]} {[%emt 00:00:02]} 49. Rxf7 {[%clk 00:02:12]} {[%emt
00:00:20]} Rxc5 {[%clk 00:00:47]} {[%emt 00:00:02]} 50. Re7 {[%clk 00:02:06]}
{[%emt 00:00:16]} Rc2+ {[%clk 00:00:56]} 51. Kd1 {[%clk 00:02:15]} {[%emt
00:00:01]} Rc6 {[%clk 00:01:05]} {[%emt 00:00:01]} 52. Kd2 {[%clk 00:02:18]}
{[%emt 00:00:07]} Kf3 {[%clk 00:01:14]} {[%emt 00:00:01]} 53. Rg7 {[%clk
00:02:26]} {[%emt 00:00:02]} Rd6+ {[%clk 00:01:17]} {[%emt 00:00:08]} 54. Kc3
{[%clk 00:02:35]} Rd1 {[%clk 00:01:25]} {[%emt 00:00:02]} 55. Rg6 {[%clk
00:02:36]} {[%emt 00:00:10]} Rg1 {[%clk 00:01:27]} {[%emt 00:00:08]} 56. Kd4
{[%clk 00:01:37]} {[%emt 00:01:08]} Rxg3 {[%clk 00:01:26]} {[%emt 00:00:10]} 57.
Rf6 {[%clk 00:01:46]} {[%emt 00:00:02]} Rg4 {[%clk 00:01:12]} {[%emt 00:00:24]}
58. Ke5 {[%clk 00:01:54]} {[%emt 00:00:01]} Rh4 {[%clk 00:01:18]} {[%emt
00:00:04]} 59. Rf7 {[%clk 00:01:06]} {[%emt 00:00:59]} Rh6 {[%emt 00:01:09]} 60.
Kd4 {[%clk 00:15:10]} 1/2-1/2

[Event "British Rapidplay Championship 2023"]
[Site "Mercure Bradford, Bankfield Hotel"]
[Date "2023.04.16"]
[Round "8.22"]
[White "May, Paul"]
[Black "Mazek, Marek"]
[Result "0-1"]
[TimeControl "15 minutes plus 10 seconds per move"]
[WhiteElo "1652"]
[BlackElo "2052"]

1. d4 {[%clk 00:15:17]} {[%emt 00:00:02]} Nf6 {[%clk 00:15:19]} {[%emt
00:00:02]} 2. c4 {[%clk 00:15:26]} {[%emt 00:00:01]} e6 {[%clk 00:15:28]}
{[%emt 00:00:01]} 3. Nc3 {[%clk 00:15:33]} {[%emt 00:00:03]} Bb4 {[%clk
00:15:36]} {[%emt 00:00:01]} 4. f3 {[%clk 00:15:35]} {[%emt 00:00:08]} Bxc3+
{[%clk 00:15:37]} {[%emt 00:00:10]} 5. bxc3 {[%clk 00:15:43]} {[%emt 00:00:02]}
d5 {[%clk 00:15:46]} {[%emt 00:00:02]} 6. cxd5 {[%clk 00:14:14]} {[%emt
00:01:39]} exd5 {[%clk 00:15:54]} {[%emt 00:00:02]} 7. Qc2 {[%clk 00:13:27]}
{[%emt 00:00:56]} O-O {[%clk 00:15:58]} {[%emt 00:00:07]} 8. e3 {[%clk
00:13:28]} {[%emt 00:00:09]} Re8 {[%clk 00:15:52]} {[%emt 00:00:15]} 9. Bd3
{[%clk 00:13:26]} {[%emt 00:00:12]} h6 {[%clk 00:15:58]} {[%emt 00:00:05]} 10.
Ne2 {[%clk 00:13:24]} {[%emt 00:00:13]} b6 {[%clk 00:16:03]} {[%emt 00:00:04]}
11. O-O {[%clk 00:13:06]} {[%emt 00:00:27]} Bb7 {[%clk 00:15:38]} {[%emt
00:00:35]} 12. Ng3 {[%clk 00:12:49]} {[%emt 00:00:27]} Nbd7 {[%clk 00:15:03]}
{[%emt 00:00:45]} 13. c4 {[%clk 00:11:47]} {[%emt 00:01:12]} c5 {[%clk
00:15:06]} {[%emt 00:00:06]} 14. cxd5 {[%clk 00:11:41]} {[%emt 00:00:17]} Nxd5
{[%clk 00:15:01]} {[%emt 00:00:14]} 15. e4 {[%clk 00:10:02]} {[%emt 00:01:49]}
Nb4 {[%clk 00:15:02]} {[%emt 00:00:10]} 16. Qb1 {[%clk 00:09:56]} {[%emt
00:00:16]} Nxd3 {[%clk 00:15:10]} {[%emt 00:00:02]} 17. Qxd3 {[%clk 00:10:04]}
{[%emt 00:00:03]} Ne5 {[%clk 00:15:05]} {[%emt 00:00:14]} 18. Qb5 {[%clk
00:07:00]} {[%emt 00:03:13]} Qxd4+ {[%clk 00:14:49]} {[%emt 00:00:26]} 19. Be3
{[%clk 00:06:00]} {[%emt 00:01:10]} Qxe3+ {[%clk 00:14:57]} {[%emt 00:00:02]}
20. Kh1 {[%clk 00:06:06]} {[%emt 00:00:03]} Nd3 {[%clk 00:14:21]} {[%emt
00:00:46]} 21. h3 {[%clk 00:04:57]} {[%emt 00:01:20]} Rad8 {[%clk 00:14:21]}
{[%emt 00:00:10]} 22. Nf5 {[%clk 00:04:58]} {[%emt 00:00:08]} Qe2 {[%clk
00:12:37]} {[%emt 00:01:54]} 23. Nd6 {[%clk 00:03:16]} {[%emt 00:01:53]} Rf8
{[%clk 00:10:13]} {[%emt 00:02:34]} 24. Nc4 {[%clk 00:00:41]} {[%emt 00:02:45]}
Nf4 {[%clk 00:10:06]} {[%emt 00:00:16]} 25. Rg1 {[%clk 00:00:37]} {[%emt
00:00:15]} Nxh3 {[%clk 00:09:26]} {[%emt 00:00:50]} 26. Rae1 {[%clk 00:00:13]}
{[%emt 00:00:34]} Nf2+ {[%clk 00:08:12]} {[%emt 00:01:24]} 27. Kh2 {[%clk
00:00:19]} {[%emt 00:00:05]} Qd3 {[%clk 00:07:49]} {[%emt 00:00:32]} 28. Rgf1
{[%clk 00:00:19]} {[%emt 00:00:10]} Rd4 {[%clk 00:07:28]} {[%emt 00:00:30]} 29.
Rxf2 {[%clk 00:00:17]} {[%emt 00:00:13]} Qxc4 {[%clk 00:07:35]} {[%emt
00:00:03]} 30. Qb2 {[%clk 00:00:19]} {[%emt 00:00:07]} Qe6 {[%clk 00:07:34]}
{[%emt 00:00:11]} 31. Rfe2 {[%clk 00:00:11]} {[%emt 00:00:19]} Rfd8 {[%clk
00:07:41]} {[%emt 00:00:03]} 32. Kg1 {[%clk 00:00:20]} {[%emt 00:00:01]} Ba6
{[%clk 00:07:46]} {[%emt 00:00:06]} 33. Rc2 {[%clk 00:00:18]} {[%emt 00:00:12]}
Rd1 {[%clk 00:07:44]} {[%emt 00:00:12]} 34. Rc1 {[%clk 00:00:27]} {[%emt
00:00:01]} R1d2 {[%clk 00:07:47]} {[%emt 00:00:06]} 35. Rc2 {[%clk 00:00:36]}
{[%emt 00:00:01]} Rxc2 {[%clk 00:07:42]} {[%emt 00:00:15]} 36. Qxc2 {[%clk
00:00:44]} {[%emt 00:00:01]} Qc4 {[%clk 00:07:51]} {[%emt 00:00:02]} 37. Qb2
{[%clk 00:00:33]} {[%emt 00:00:21]} Qd4+ {[%clk 00:07:59]} {[%emt 00:00:01]} 38.
Qxd4 {[%clk 00:00:31]} {[%emt 00:00:12]} Rxd4 {[%clk 00:07:59]} {[%emt
00:00:10]} 39. Rc1 {[%clk 00:00:21]} {[%emt 00:00:21]} Rd2 {[%clk 00:08:05]}
{[%emt 00:00:04]} 40. a3 {[%clk 00:00:26]} {[%emt 00:00:05]} c4 {[%clk
00:08:14]} {[%emt 00:00:01]} 41. Rc3 {[%clk 00:00:32]} {[%emt 00:00:05]} Rb2
{[%clk 00:08:14]} {[%emt 00:00:09]} 0-1

[Event "British Rapidplay Championship 2023"]
[Site "Mercure Bradford, Bankfield Hotel"]
[Date "2023.04.16"]
[Round "8.23"]
[White "Slinger, AJ (Tony)"]
[Black "Brencher, Paul"]
[Result "1/2-1/2"]
[TimeControl "15 minutes plus 10 seconds per move"]
[WhiteElo "1841"]
[BlackElo "1929"]

1. c4 {[%clk 00:15:19]} e5 {[%clk 00:15:14]} {[%emt 00:00:07]} 2. Nc3 {[%clk
00:15:27]} {[%emt 00:00:02]} Nf6 {[%clk 00:15:22]} {[%emt 00:00:02]} 3. Nf3
{[%clk 00:15:34]} {[%emt 00:00:03]} Nc6 {[%clk 00:15:23]} {[%emt 00:00:09]} 4.
e3 {[%clk 00:15:37]} {[%emt 00:00:07]} Bb4 {[%clk 00:15:31]} {[%emt 00:00:02]}
5. Qc2 {[%clk 00:15:45]} {[%emt 00:00:02]} Bxc3 {[%clk 00:15:30]} {[%emt
00:00:11]} 6. bxc3 {[%clk 00:15:48]} {[%emt 00:00:08]} d6 {[%clk 00:15:13]}
{[%emt 00:00:27]} 7. e4 {[%clk 00:15:54]} {[%emt 00:00:03]} O-O {[%clk
00:14:34]} {[%emt 00:00:49]} 8. g3 {[%clk 00:15:46]} {[%emt 00:00:18]} Bg4
{[%clk 00:13:12]} {[%emt 00:01:32]} 9. Bg2 {[%clk 00:15:55]} {[%emt 00:00:02]}
h6 {[%clk 00:12:38]} {[%emt 00:00:44]} 10. O-O {[%clk 00:16:02]} {[%emt
00:00:03]} Qd7 {[%clk 00:12:24]} {[%emt 00:00:25]} 11. Rb1 {[%clk 00:16:10]}
{[%emt 00:00:02]} b6 {[%clk 00:12:20]} {[%emt 00:00:13]} 12. d3 {[%clk
00:16:07]} {[%emt 00:00:13]} Bh3 {[%clk 00:10:36]} {[%emt 00:01:55]} 13. Nh4
{[%clk 00:15:01]} {[%emt 00:01:15]} Ne7 {[%clk 00:08:20]} {[%emt 00:02:26]} 14.
f4 {[%clk 00:12:08]} {[%emt 00:03:04]} Bxg2 {[%clk 00:05:58]} {[%emt 00:02:32]}
15. Nxg2 {[%clk 00:12:04]} {[%emt 00:00:13]} Qh3 {[%clk 00:04:42]} {[%emt
00:01:26]} 16. f5 {[%clk 00:10:59]} {[%emt 00:01:15]} g6 {[%clk 00:01:57]}
{[%emt 00:02:55]} 17. Ne3 {[%clk 00:10:33]} {[%emt 00:00:35]} Kh7 {[%clk
00:01:02]} {[%emt 00:01:05]} 18. Qg2 {[%clk 00:10:12]} {[%emt 00:00:31]} Qxg2+
{[%clk 00:01:07]} {[%emt 00:00:07]} 19. Kxg2 {[%clk 00:10:20]} {[%emt
00:00:01]} Nd7 {[%clk 00:00:40]} {[%emt 00:00:37]} 20. Nd5 {[%clk 00:08:54]}
{[%emt 00:01:36]} Nxd5 {[%clk 00:00:41]} {[%emt 00:00:10]} 21. cxd5 {[%clk
00:09:01]} {[%emt 00:00:02]} Nc5 {[%clk 00:00:40]} {[%emt 00:00:12]} 22. Rf3
{[%clk 00:08:32]} {[%emt 00:00:39]} g5 {[%clk 00:00:26]} {[%emt 00:00:25]} 23.
Ba3 {[%clk 00:08:30]} {[%emt 00:00:11]} Rab8 {[%clk 00:00:25]} {[%emt
00:00:11]} 24. Re3 {[%clk 00:07:43]} {[%emt 00:00:57]} Rfe8 {[%clk 00:00:26]}
{[%emt 00:00:09]} 25. Kf3 {[%clk 00:07:31]} {[%emt 00:00:21]} f6 {[%clk
00:00:31]} {[%emt 00:00:06]} 26. Ke2 {[%clk 00:07:03]} {[%emt 00:00:37]} Kg7
{[%clk 00:00:35]} {[%emt 00:00:07]} 27. h3 {[%clk 00:06:25]} {[%emt 00:00:47]}
h5 {[%clk 00:00:40]} {[%emt 00:00:05]} 28. Kd2 {[%clk 00:06:33]} {[%emt
00:00:02]} g4 {[%clk 00:00:33]} {[%emt 00:00:18]} 29. h4 {[%clk 00:06:29]}
{[%emt 00:00:14]} Kf7 {[%clk 00:00:36]} {[%emt 00:00:08]} 30. Ree1 {[%clk
00:06:24]} {[%emt 00:00:14]} Ke7 {[%clk 00:00:32]} {[%emt 00:00:14]} 31. d4
{[%clk 00:05:57]} {[%emt 00:00:37]} Nd7 {[%clk 00:00:33]} {[%emt 00:00:09]} 32.
Kd3 {[%clk 00:05:49]} {[%emt 00:00:18]} Kf7 {[%clk 00:00:42]} {[%emt 00:00:02]}
33. Bc1 {[%clk 00:05:23]} {[%emt 00:00:35]} Re7 {[%clk 00:00:34]} {[%emt
00:00:19]} 34. a4 {[%clk 00:05:28]} {[%emt 00:00:05]} Ree8 {[%clk 00:00:29]}
{[%emt 00:00:16]} 35. Ba3 {[%clk 00:05:28]} {[%emt 00:00:09]} Re7 {[%clk
00:00:31]} {[%emt 00:00:09]} 36. Re2 {[%clk 00:05:23]} {[%emt 00:00:15]}
1/2-1/2

[ePGN "0.1;DGT LiveChess/2.2.5"]